fUST/lending_fUST_20250817
["ID","MTS","AMOUNT","RATE_DAILY","PERIOD"]
[379813523,1755417039121,-420.0,0.00019883,2]
[379813524,1755417039131,-480.0,0.00019883,2]
[379813525,1755417039140,-480.0,0.00019883,2]
[379813526,1755417039149,-480.0,0.00019883,2]
[379813527,1755417039160,-521.57441504,0.00019883,2]
[379813528,1755417039169,-979.61,0.00019883,2]
[379813529,1755417039178,-480.0,0.00019883,2]
[379813530,1755417039188,-480.0,0.00019883,2]
[379813531,1755417039197,-480.0,0.00019883,2]
[379813532,1755417039207,-6792.97,0.00019883,2]
[379813533,1755417039216,-480.0,0.00019883,2]
[379813534,1755417039225,-4776.72,0.00019883,2]
[379813535,1755417039235,-462.58868911,0.00019883,2]
[379813536,1755417039247,-480.0,0.00019884,2]
[379813537,1755417039257,-480.0,0.00019884,2]
[379813538,1755417039266,-480.0,0.00019884,2]
[379813539,1755417039276,-484.26566027,0.00019884,2]
[379813540,1755417039285,-721.26,0.00019884,2]
[379813541,1755417039295,-480.0,0.00019884,2]
[379813542,1755417039304,-480.0,0.00019884,2]
[379813543,1755417039313,-483.56929061,0.00019884,2]
[379813544,1755417039323,-470.44422325,0.00019884,2]
[379813545,1755417039332,-480.0,0.00019884,2]
[379813546,1755417039342,-482.25843446,0.00019884,2]
[379813547,1755417039353,-204.14184064,0.00019884,2]
[379813548,1755417039363,-480.0,0.00019884,2]
[379813549,1755417039372,-486.84428096,0.00019884,2]
[379813550,1755417039382,-480.0,0.00019884,2]
[379813553,1755417039391,-1426.33,0.00019884,2]
[379813555,1755417039401,-592.12254413,0.00019884,2]
[379813557,1755417039410,-480.0,0.00019884,2]
[379813558,1755417039419,-480.0,0.00019884,2]
[379813559,1755417039428,-480.0,0.00019884,2]
[379813560,1755417039437,-480.0,0.00019884,2]
[379813561,1755417039447,-480.0,0.00019884,2]
[379813562,1755417039456,-480.0,0.00019884,2]
[379813563,1755417039466,-1107.58,0.00019884,2]
[379813564,1755417039475,-480.0,0.00019885,2]
[379813565,1755417039485,-480.0,0.00019885,2]
[379813566,1755417039495,-480.0,0.00019885,2]
[379813567,1755417039506,-480.0,0.00019885,2]
[379813568,1755417039516,-480.0,0.00019885,2]
[379813569,1755417039526,-480.0,0.00019885,2]
[379813570,1755417039535,-480.0,0.00019885,2]
[379813571,1755417039544,-230.65184105,0.00019885,2]
[379813572,1755417039553,-480.0,0.00019885,2]
[379813573,1755417039563,-480.0,0.00019885,2]
[379813574,1755417039572,-480.0,0.00019885,2]
[379813575,1755417039581,-480.0,0.00019885,2]
[379813576,1755417039590,-229.5506776,0.00019885,2]
[379813577,1755417039599,-430.68,0.00019885,2]
[379813578,1755417039608,-371.03,0.00019885,2]
[379813579,1755417039617,-480.0,0.00019885,2]
[379813580,1755417039626,-485.11926262,0.00019885,2]
[379813581,1755417039636,-483.29717523,0.00019885,2]
[379813582,1755417039645,-480.0,0.00019885,2]
[379813583,1755417039655,-480.0,0.00019885,2]
[379813584,1755417039664,-1692.1582213,0.00019925,2]
[379813585,1755417039673,-480.0,0.0001997,2]
[379813586,1755417039683,-244.06368141,0.0001997,2]
[379813587,1755417039693,-541.32,0.0001997,2]
[379813588,1755417039703,-180.26,0.00019971,2]
[379813589,1755417039714,-480.0,0.00019971,2]
[379813591,1755417039723,-480.0,0.00019971,2]
[379813593,1755417039732,-1354.16,0.00019971,2]
[379813595,1755417039742,-1132.57,0.00019971,2]
[379813597,1755417039751,-517.81,0.00019972,2]
[379813599,1755417039760,-937.92,0.00019972,2]
[379813601,1755417039769,-480.0,0.00019972,2]
[379813603,1755417039779,-1058.44,0.00019972,2]
[379813604,1755417039789,-480.0,0.00019972,2]
[379813605,1755417039798,-518.87,0.00019972,2]
[379813606,1755417039807,-480.0,0.00019972,2]
[379813607,1755417039817,-480.0,0.00019972,2]
[379813608,1755417039826,-480.0,0.00019972,2]
[379813609,1755417039835,-480.0,0.00019972,2]
[379813610,1755417039845,-422.84,0.00019972,2]
[379813611,1755417039854,-276.14,0.00019972,2]
[379813612,1755417039863,-480.0,0.00019972,2]
[379813613,1755417039873,-1819.37,0.00019972,2]
[379813614,1755417039882,-480.0,0.00019972,2]
[379813615,1755417039891,-480.0,0.00019972,2]
[379813617,1755417039900,-986.05,0.00019972,2]
[379813619,1755417039910,-582.95,0.00019972,2]
[379813620,1755417039919,-1570.11,0.00019972,2]
[379813621,1755417039928,-480.0,0.00019972,2]
[379813622,1755417039938,-480.0,0.00019972,2]
[379813623,1755417039947,-985.56,0.00019972,2]
[379813624,1755417039956,-480.0,0.00019972,2]
[379813625,1755417039965,-480.0,0.00019972,2]
[379813626,1755417039974,-480.0,0.00019972,2]
[379813627,1755417039984,-480.0,0.00019972,2]
[379813628,1755417039993,-480.0,0.00019972,2]
[379813629,1755417040002,-2899.36,0.00019972,2]
[379813630,1755417040013,-480.0,0.00019972,2]
[379813631,1755417040022,-480.0,0.00019972,2]
[379813632,1755417040031,-699.87,0.00019972,2]
[379813633,1755417040041,-480.0,0.00019972,2]
[379813634,1755417040050,-522.58,0.00019973,2]
[379813635,1755417040059,-321.9,0.00019973,2]
[379813636,1755417040068,-480.0,0.00019973,2]
[379813637,1755417040078,-5719.98,0.00019973,2]
[379813638,1755417040088,-1511.82,0.00019973,2]
[379813639,1755417040097,-568.36,0.00019973,2]
[379813640,1755417040106,-480.0,0.00019973,2]
[379813641,1755417040115,-1022.5,0.00019973,2]
[379813642,1755417040125,-480.0,0.00019973,2]
[379813643,1755417040134,-562.52,0.00019973,2]
[379813644,1755417040144,-500.0,0.00019974,2]
[379813646,1755417040153,-1000.0,0.00019989,2]
[379813648,1755417040162,-541.64251764,0.0001999,2]
[379813650,1755417040171,-87221.55007001,0.00019998,2]
[379813653,1755417040188,-72593.96393169,0.00019998,2]
[379813655,1755417040198,-160.0,0.0002,3]
[379813657,1755417040207,-500.0,0.0002,2]
[379813658,1755417040217,-1378.4811163,0.0002005,2]
[379813659,1755417040226,-480.0,0.00020073,2]
[379813660,1755417040237,-675.67,0.00020073,2]
[379813661,1755417040250,-445.2,0.00020073,2]
[379813662,1755417040260,-480.0,0.00020073,2]
[379813663,1755417040273,-480.0,0.00020073,2]
[379813664,1755417040283,-480.0,0.00020073,2]
[379813665,1755417040292,-167.47,0.00020073,2]
[379813666,1755417040302,-480.0,0.00020073,2]
[379813667,1755417040311,-460.0,0.00020073,2]
[379813668,1755417040321,-480.0,0.00020073,2]
[379813669,1755417040331,-356.59860272,0.00020073,2]
[379813670,1755417040341,-480.0,0.00020073,2]
[379813671,1755417040350,-480.0,0.00020073,2]
[379813672,1755417040360,-480.0,0.00020073,2]
[379813673,1755417040370,-262.50774572,0.00020073,2]
[379813674,1755417040380,-480.0,0.00020073,2]
[379813675,1755417040389,-160.29709834,0.00020137,2]
[379813676,1755417040398,-225.95,0.00020157,2]
[379813677,1755417040409,-480.0,0.00020157,2]
[379813678,1755417040418,-399.83,0.00020157,2]
[379813679,1755417040428,-693.73,0.00020157,2]
[379813680,1755417040437,-480.0,0.00020157,2]
[379813681,1755417040446,-480.0,0.00020157,2]
[379813682,1755417040455,-401.73452311,0.00020157,2]
[379813683,1755417040464,-480.0,0.00020157,2]
[379813684,1755417040473,-480.0,0.00020157,2]
[379813685,1755417040483,-480.0,0.00020157,2]
[379813686,1755417040493,-480.0,0.00020157,2]
[379813687,1755417040502,-480.0,0.00020157,2]
[379813688,1755417040511,-480.0,0.00020157,2]
[379813689,1755417040520,-858.59,0.00020157,2]
[379813690,1755417040529,-480.0,0.00020157,2]
[379813691,1755417040539,-480.0,0.00020157,2]
[379813692,1755417040548,-420.0,0.00020157,2]
[379813693,1755417040557,-549.27,0.00020157,2]
[379813694,1755417040567,-480.0,0.00020157,2]
[379813695,1755417040577,-480.0,0.00020157,2]
[379813696,1755417040586,-282.30006992,0.00020157,2]
[379813697,1755417040595,-480.0,0.00020157,2]
[379813698,1755417040604,-461.14848999,0.00020157,2]
[379813699,1755417040614,-480.0,0.00020157,2]
[379813700,1755417040624,-480.0,0.00020157,2]
[379813701,1755417040634,-979.61,0.00020157,2]
[379813702,1755417040644,-480.0,0.00020157,2]
[379813703,1755417040653,-6792.97,0.00020157,2]
[379813704,1755417040662,-4776.72,0.00020157,2]
[379813705,1755417040672,-480.0,0.00020158,2]
[379813706,1755417040682,-273.48162258,0.00020158,2]
[379813707,1755417040691,-721.26,0.00020158,2]
[379813708,1755417040701,-480.0,0.00020158,2]
[379813709,1755417040710,-480.0,0.00020158,2]
[379813710,1755417040719,-177.95537248,0.00020158,2]
[379813711,1755417040728,-404.08609851,0.00020158,2]
[379813712,1755417040737,-483.42852544,0.00020158,2]
[379813713,1755417040747,-1426.33,0.00020158,2]
[379813714,1755417040756,-480.0,0.00020158,2]
[379813715,1755417040765,-480.0,0.00020158,2]
[379813716,1755417040774,-480.0,0.00020158,2]
[379813717,1755417040783,-480.0,0.00020158,2]
[379813718,1755417040793,-480.0,0.00020158,2]
[379813719,1755417040803,-1107.58,0.00020158,2]
[379813720,1755417040811,-480.0,0.00020159,2]
[379813721,1755417040820,-480.0,0.00020159,2]
[379813722,1755417040831,-480.0,0.00020159,2]
[379813723,1755417040841,-297.20326665,0.00020159,2]
[379813724,1755417040851,-480.0,0.00020159,2]
[379813725,1755417040860,-480.0,0.00020159,2]
[379813726,1755417040870,-454.020316,0.00020187,2]
[379813727,1755417040879,-151.0,0.000202,3]
[379813728,1755417040888,-273.20883875,0.00020202,2]
[379813729,1755417040898,-1378.4811163,0.00020225,2]
[379813730,1755417040907,-480.0,0.00020245,2]
[379813731,1755417040916,-480.0,0.00020245,2]
[379813732,1755417040926,-1354.16,0.00020245,2]
[379813733,1755417040935,-517.81,0.00020246,2]
[379813734,1755417040944,-937.92,0.00020246,2]
[379813735,1755417040954,-480.0,0.00020246,2]
[379813736,1755417040963,-1058.44,0.00020246,2]
[379813737,1755417040973,-480.0,0.00020246,2]
[379813738,1755417040982,-518.87,0.00020246,2]
[379813739,1755417040991,-480.0,0.00020246,2]
[379813740,1755417041000,-480.0,0.00020246,2]
[379813741,1755417041009,-480.0,0.00020246,2]
[379813742,1755417041019,-480.0,0.00020246,2]
[379813743,1755417041028,-480.0,0.00020246,2]
[379813744,1755417041037,-1819.37,0.00020246,2]
[379813745,1755417041047,-325.48,0.00020246,2]
[379813746,1755417041056,-480.0,0.00020246,2]
[379813747,1755417041065,-986.05,0.00020246,2]
[379813748,1755417041075,-582.95,0.00020246,2]
[379813749,1755417041085,-1570.11,0.00020246,2]
[379813750,1755417041094,-480.0,0.00020246,2]
[379813751,1755417041103,-480.0,0.00020246,2]
[379813752,1755417041113,-985.56,0.00020246,2]
[379813753,1755417041122,-480.0,0.00020246,2]
[379813754,1755417041132,-422.26,0.00020246,2]
[379813755,1755417041141,-415.61651495,0.00020246,2]
[379813756,1755417041151,-480.0,0.00020246,2]
[379813757,1755417041163,-480.0,0.00020246,2]
[379813758,1755417041177,-2899.36,0.00020246,2]
[379813759,1755417041194,-480.0,0.00020246,2]
[379813760,1755417041205,-480.0,0.00020246,2]
[379813761,1755417041226,-699.87,0.00020246,2]
[379813762,1755417041237,-480.0,0.00020246,2]
[379813763,1755417041248,-522.58,0.00020247,2]
[379813764,1755417041257,-480.0,0.00020247,2]
[379813765,1755417041267,-5719.98,0.00020247,2]
[379813766,1755417041276,-1511.82,0.00020247,2]
[379813767,1755417041285,-568.36,0.00020247,2]
[379813768,1755417041294,-480.0,0.00020247,2]
[379813769,1755417041304,-1022.5,0.00020247,2]
[379813770,1755417041313,-562.52,0.00020247,2]
[379813771,1755417041322,-1000.0,0.00020248,2]
[379813772,1755417041331,-200.0,0.0002028,20]
[379813773,1755417041341,-200.0,0.0002028,20]
[379813774,1755417041350,-200.0,0.0002028,20]
[379813775,1755417041359,-200.0,0.0002028,20]
[379813776,1755417041369,-200.0,0.0002028,20]
[379813777,1755417041378,-200.0,0.0002028,20]
[379813778,1755417041387,-200.0,0.0002028,20]
[379813779,1755417041397,-200.0,0.0002028,20]
[379813780,1755417041406,-200.0,0.0002028,20]
[379813781,1755417041415,-200.0,0.0002028,20]
[379813782,1755417041425,-600.0,0.00020281,20]
[379813783,1755417041434,-160.0,0.00020291,2]
[379813784,1755417041443,-843.71309931,0.00020291,2]
[379813785,1755417041452,-160.0,0.00020291,2]
[379813786,1755417041461,-160.0,0.00020291,2]
[379813787,1755417041591,-160.0,0.00020291,2]
[379813788,1755417041601,-528.48506731,0.00020291,2]
[379813789,1755417041611,-160.0,0.00020291,2]
[379813790,1755417041620,-160.0,0.00020291,2]
[379813791,1755417041629,-417.15472785,0.00020291,2]
[379813792,1755417041638,-215.71995163,0.00020291,2]
[379813793,1755417041649,-375.77065697,0.00020291,2]
[379813794,1755417041658,-160.0,0.00020291,2]
[379813795,1755417041667,-232.1512529,0.00020291,2]
[379813796,1755417041676,-160.0,0.00020291,2]
[379813797,1755417041685,-160.0,0.00020291,2]
[379813798,1755417041694,-12682.46447135,0.00020291,2]
[379813799,1755417041704,-151.0,0.000203,3]
[379813800,1755417041713,-151.0,0.000203,3]
[379813801,1755417041722,-226.93,0.00020347,2]
[379813802,1755417041731,-675.67,0.00020347,2]
[379813803,1755417041740,-188.44,0.00020347,2]
[379813804,1755417041749,-480.0,0.00020347,2]
[379813805,1755417041758,-480.0,0.00020347,2]
[379813806,1755417041766,-292.55333489,0.00020347,2]
[379813807,1755417041775,-480.0,0.00020347,2]
[379813808,1755417041784,-480.0,0.00020347,2]
[379813809,1755417041793,-480.0,0.00020347,2]
[379813810,1755417041802,-2726.08,0.00020382,2]
[379813811,1755417041811,-160.29709834,0.00020384,2]
[379813812,1755417041820,-615.2,0.00020388,2]
[379813813,1755417041829,-151.0,0.000204,4]
[379813814,1755417041838,-151.0,0.000204,4]
[379813815,1755417041847,-151.0,0.000204,3]
[379813816,1755417041857,-151.0,0.000204,3]
[379813817,1755417041866,-1378.4811163,0.000204,2]
[379813818,1755417041875,-480.0,0.00020431,2]
[379813819,1755417041885,-693.73,0.00020431,2]
[379813820,1755417041894,-480.0,0.00020431,2]
[379813821,1755417041903,-480.0,0.00020431,2]
[379813822,1755417041912,-451.11,0.00020431,2]
[379813823,1755417041921,-480.0,0.00020431,2]
[379813824,1755417041930,-480.0,0.00020431,2]
[379813825,1755417041939,-480.0,0.00020431,2]
[379813826,1755417041948,-480.0,0.00020431,2]
[379813827,1755417041958,-858.59,0.00020431,2]
[379813828,1755417041967,-480.0,0.00020431,2]
[379813829,1755417041976,-480.0,0.00020431,2]
[379813830,1755417041985,-549.27,0.00020431,2]
[379813831,1755417041995,-480.0,0.00020431,2]
[379813832,1755417042004,-480.0,0.00020431,2]
[379813833,1755417042013,-480.0,0.00020431,2]
[379813834,1755417042022,-568.7,0.00020431,2]
[379813835,1755417042031,-480.0,0.00020431,2]
[379813836,1755417042040,-979.61,0.00020431,2]
[379813837,1755417042049,-586.94,0.00020431,2]
[379813838,1755417042059,-6792.97,0.00020431,2]
[379813839,1755417042068,-4776.72,0.00020431,2]
[379813840,1755417042077,-480.0,0.00020432,2]
[379813841,1755417042086,-721.26,0.00020432,2]
[379813842,1755417042095,-480.0,0.00020432,2]
[379813843,1755417042104,-480.0,0.00020432,2]
[379813845,1755417042113,-1426.33,0.00020432,2]
[379813847,1755417042123,-480.0,0.00020432,2]
[379813849,1755417042132,-328.42,0.00020432,2]
[379813850,1755417042142,-480.0,0.00020432,2]
[379813852,1755417042152,-480.0,0.00020432,2]
[379813855,1755417042161,-168.15,0.00020432,2]
[379813858,1755417042171,-1107.58,0.00020432,2]
[379813861,1755417042180,-486.19,0.00020433,2]
[379813865,1755417042190,-336.73175392,0.00020433,2]
[379813868,1755417042199,-480.0,0.00020433,2]
[379813871,1755417042208,-1424.0,0.00020443,2]
[379813874,1755417042217,-274.74512584,0.00020462,2]
[379813877,1755417042226,-421.19633132,0.00020462,2]
[379813880,1755417042236,-189.28957646,0.00020462,2]
[379813882,1755417042248,-500.0,0.00020473,2]
[379813884,1755417042258,-502.13602325,0.00020473,2]
[379813886,1755417042267,-500.0,0.00020473,2]
[379813888,1755417042276,-500.0,0.00020473,2]
[379813890,1755417042286,-500.0,0.00020473,2]
[379813891,1755417042295,-500.0,0.00020473,2]
[379813892,1755417042305,-500.0,0.00020473,2]
[379813893,1755417042315,-500.0,0.00020473,2]
[379813895,1755417042324,-500.0,0.00020473,2]
[379813897,1755417042333,-500.0,0.00020473,2]
[379813899,1755417042343,-500.0,0.00020473,2]
[379813901,1755417042352,-501.25711225,0.00020473,2]
[379813903,1755417042361,-500.71946824,0.00020473,2]
[379813905,1755417042370,-500.0,0.00020473,2]
[379813907,1755417042379,-500.0,0.00020473,2]
[379813910,1755417042389,-500.0,0.00020473,2]
[379813912,1755417042398,-500.0,0.00020473,2]
[379813914,1755417042407,-500.0,0.00020473,2]
[379813916,1755417042416,-500.0,0.00020473,2]
[379813917,1755417042425,-501.23763847,0.00020473,2]
[379813919,1755417042434,-160.54487669,0.00020473,2]
[379813921,1755417042443,-500.0,0.00020473,2]
[379813923,1755417042451,-500.0,0.00020473,2]
[379813925,1755417042460,-500.0,0.00020473,2]
[379813927,1755417042470,-500.0,0.00020473,2]
[379813929,1755417042478,-500.0,0.00020473,2]
[379813931,1755417042488,-500.0,0.00020473,2]
[379813933,1755417042496,-500.48515569,0.00020473,2]
[379813935,1755417042505,-500.0,0.00020473,2]
[379813937,1755417042514,-500.0,0.00020473,2]
[379813939,1755417042523,-500.33051273,0.00020473,2]
[379813941,1755417042532,-500.0,0.00020473,2]
[379813943,1755417042541,-500.0,0.00020473,2]
[379813945,1755417042550,-500.0,0.00020473,2]
[379813947,1755417042559,-500.0,0.00020473,2]
[379813949,1755417042569,-500.0,0.00020473,2]
[379813951,1755417042578,-500.0,0.00020473,2]
[379813953,1755417042587,-500.0,0.00020473,2]
[379813955,1755417042597,-500.0,0.00020473,2]
[379813957,1755417042606,-502.29518042,0.00020473,2]
[379813959,1755417042615,-394.04902133,0.00020473,2]
[379813961,1755417042624,-500.0,0.00020473,2]
[379813963,1755417042633,-428.16216798,0.00020473,2]
[379813966,1755417042650,-500.0,0.00020473,2]
[379813969,1755417042663,-500.0,0.00020473,2]
[379813971,1755417042674,-500.0,0.00020473,2]
[379813973,1755417042683,-500.0,0.00020473,2]
[379813975,1755417042694,-500.0,0.00020473,2]
[379813977,1755417042705,-500.0,0.00020473,2]
[379813979,1755417042715,-158.2102775,0.00020473,2]
[379813981,1755417042724,-502.45168872,0.00020473,2]
[379813983,1755417042734,-500.0,0.00020473,2]
[379813985,1755417042743,-500.0,0.00020473,2]
[379813987,1755417042753,-517.02090165,0.00020473,2]
[379813989,1755417042762,-300.80260306,0.00020499,2]
[379813991,1755417042772,-3487.49177874,0.000205,2]
[379813993,1755417042782,-18696.36,0.000205,2]
[379813995,1755417042791,-622022.55,0.000205,2]
[379813997,1755417042801,-16679.72,0.000205,2]
[379813999,1755417042811,-351.0,0.000205,2]
[379814001,1755417042820,-205.06844287,0.00020519,2]
[379814003,1755417042829,-480.0,0.00020519,2]
[379814005,1755417042838,-1354.16,0.00020519,2]
[379814007,1755417042849,-517.81,0.0002052,2]
[379814009,1755417042858,-937.92,0.0002052,2]
[379814011,1755417042868,-480.0,0.0002052,2]
[379814013,1755417042877,-1058.44,0.0002052,2]
[379814015,1755417042887,-480.0,0.0002052,2]
[379814017,1755417042897,-518.87,0.0002052,2]
[379814019,1755417042907,-480.0,0.0002052,2]
[379814022,1755417042917,-480.0,0.0002052,2]
[379814024,1755417042926,-415.13,0.0002052,2]
[379814026,1755417042936,-480.0,0.0002052,2]
[379814028,1755417042945,-480.0,0.0002052,2]
[379814030,1755417042955,-1819.37,0.0002052,2]
[379814032,1755417042964,-480.0,0.0002052,2]
[379814034,1755417042973,-986.05,0.0002052,2]
[379814036,1755417042983,-582.95,0.0002052,2]
[379814038,1755417042992,-1570.11,0.0002052,2]
[379814040,1755417043002,-480.0,0.0002052,2]
[379814042,1755417043011,-480.0,0.0002052,2]
[379814044,1755417043021,-985.56,0.0002052,2]
[379814046,1755417043031,-480.0,0.0002052,2]
[379814048,1755417043040,-480.0,0.0002052,2]
[379814050,1755417043050,-2899.36,0.0002052,2]
[379814052,1755417043059,-480.0,0.0002052,2]
[379814054,1755417043068,-480.0,0.0002052,2]
[379814056,1755417043078,-699.87,0.0002052,2]
[379814058,1755417043087,-480.0,0.0002052,2]
[379814060,1755417043097,-615.2,0.00020521,2]
[379814062,1755417043106,-522.58,0.00020521,2]
[379814064,1755417043115,-480.0,0.00020521,2]
[379814066,1755417043125,-5719.98,0.00020521,2]
[379814068,1755417043135,-1511.82,0.00020521,2]
[379814070,1755417043145,-568.36,0.00020521,2]
[379814072,1755417043154,-480.0,0.00020521,2]
[379814074,1755417043163,-1022.5,0.00020521,2]
[379814076,1755417043172,-562.52,0.00020521,2]
[379814078,1755417043182,-16985.06310955,0.00020521,2]
[379814080,1755417043191,-500.0,0.00020547,2]
[379814082,1755417043200,-1683.10053994,0.00020586,2]
[379814084,1755417043210,-1424.0,0.00020586,2]
[379814086,1755417043221,-675.67,0.00020621,2]
[379814088,1755417043230,-480.0,0.00020621,2]
[379814090,1755417043242,-480.0,0.00020621,2]
[379814092,1755417043252,-480.0,0.00020621,2]
[379814094,1755417043261,-480.0,0.00020621,2]
[379814096,1755417043271,-480.0,0.00020621,2]
[379814098,1755417043280,-756.40114755,0.00020631,2]
[379814100,1755417043290,-1424.0,0.00020649,2]
[379814102,1755417043299,-679.602,0.00020651,2]
[379814104,1755417043309,-615.2,0.00020653,2]
[379814106,1755417043318,-160.29709834,0.00020658,2]
[379814108,1755417043328,-156.37978624,0.00020658,2]
[379814110,1755417043337,-5000.0,0.00020696,2]
[379814112,1755417043347,-480.0,0.00020705,2]
[379814114,1755417043356,-693.73,0.00020705,2]
[379814116,1755417043366,-480.0,0.00020705,2]
[379814118,1755417043376,-480.0,0.00020705,2]
[379814120,1755417043385,-480.0,0.00020705,2]
[379814122,1755417043395,-480.0,0.00020705,2]
[379814124,1755417043404,-480.0,0.00020705,2]
[379814126,1755417043413,-480.0,0.00020705,2]
[379814128,1755417043423,-858.59,0.00020705,2]
[379814130,1755417043433,-475.91,0.00020705,2]
[379814132,1755417043442,-480.0,0.00020705,2]
[379814134,1755417043452,-549.27,0.00020705,2]
[379814136,1755417043461,-480.0,0.00020705,2]
[379814138,1755417043470,-480.0,0.00020705,2]
[379814140,1755417043479,-480.0,0.00020705,2]
[379814142,1755417043489,-979.61,0.00020705,2]
[379814144,1755417043498,-6792.97,0.00020705,2]
[379814146,1755417043507,-4776.72,0.00020705,2]
[379814148,1755417043516,-480.0,0.00020706,2]
[379814151,1755417043525,-721.26,0.00020706,2]
[379814152,1755417043535,-480.0,0.00020706,2]
[379814155,1755417043544,-480.0,0.00020706,2]
[379814157,1755417043554,-1426.33,0.00020706,2]
[379814159,1755417043563,-480.0,0.00020706,2]
[379814161,1755417043572,-480.0,0.00020706,2]
[379814163,1755417043581,-480.0,0.00020706,2]
[379814165,1755417043590,-1107.58,0.00020706,2]
[379814167,1755417043599,-480.0,0.00020707,2]
[379814168,1755417043609,-500.0,0.00020723,2]
[379814171,1755417043618,-1424.0,0.00020747,2]
[379814173,1755417043629,-615.2,0.00020786,2]
[379814175,1755417043638,-214.49520671,0.00020789,2]
[379814177,1755417043648,-480.0,0.00020793,2]
[379814179,1755417043657,-1354.16,0.00020793,2]
[379814181,1755417043667,-517.81,0.00020794,2]
[379814183,1755417043676,-937.92,0.00020794,2]
[379814185,1755417043685,-480.0,0.00020794,2]
[379814186,1755417043695,-1058.44,0.00020794,2]
[379814188,1755417043704,-159.67,0.00020794,2]
[379814190,1755417043714,-518.87,0.00020794,2]
[379814192,1755417043723,-480.0,0.00020794,2]
[379814194,1755417043732,-480.0,0.00020794,2]
[379814196,1755417043745,-480.0,0.00020794,2]
[379814198,1755417043754,-480.0,0.00020794,2]
[379814200,1755417043764,-1819.37,0.00020794,2]
[379814202,1755417043773,-480.0,0.00020794,2]
[379814204,1755417043783,-986.05,0.00020794,2]
[379814206,1755417043792,-582.95,0.00020794,2]
[379814209,1755417043801,-1570.11,0.00020794,2]
[379814211,1755417043811,-480.0,0.00020794,2]
[379814212,1755417043820,-539.34284326,0.00020794,2]
[379814215,1755417043829,-985.56,0.00020794,2]
[379814216,1755417043838,-480.0,0.00020794,2]
[379814219,1755417043847,-480.0,0.00020794,2]
[379814221,1755417043857,-2899.36,0.00020794,2]
[379814223,1755417043866,-480.0,0.00020794,2]
[379814225,1755417043875,-480.0,0.00020794,2]
[379814227,1755417043885,-699.87,0.00020794,2]
[379814229,1755417043894,-480.0,0.00020794,2]
[379814231,1755417043904,-522.58,0.00020795,2]
[379814233,1755417043913,-480.0,0.00020795,2]
[379814235,1755417043922,-5719.98,0.00020795,2]
[379814237,1755417043932,-1511.82,0.00020795,2]
[379814239,1755417043941,-568.36,0.00020795,2]
[379814240,1755417043950,-480.0,0.00020795,2]
[379814243,1755417043960,-1022.5,0.00020795,2]
[379814245,1755417043970,-562.52,0.00020795,2]
[379814247,1755417043980,-200.0,0.0002081,2]
[379814248,1755417043989,-1117.57,0.00020811,2]
[379814250,1755417043999,-200.0,0.00020815,2]